bitfinex/quotes_SOLUSD_20250823
["timestamp","ask_amount","ask_price","bid_price","bid_amount"]
[1755927635516,13.87991715,207.3,207.25,16.22263571]
[1755927635734,0.06,207.37,207.28,15.55263571]
[1755927635895,0.06,207.37,207.29,15.55263571]
[1755927635896,55.85263571,207.36,207.29,15.55263571]
[1755927636091,40.3,207.36,207.31,15.55263571]
[1755927636329,40.3,207.36,207.32,0.67]
[1755927636819,29.14822972,207.33,207.28,0.67]
[1755927636997,13.59559401,207.31,207.28,0.67]
[1755927637199,13.59559401,207.31,207.29,0.67]
[1755927637405,13.59559401,207.31,207.3,0.67]
[1755927638029,40.3,207.32,207.3,0.67]
[1755927638919,40.3,207.31,207.27,0.67]
[1755927639089,13.59559401,207.3,207.27,0.67]
[1755927639701,0.86216157,207.34,207.22,26.0]
[1755927639702,0.34432314,207.37,207.29,15.55263571]
[1755927639917,13.59559401,207.35,207.3,16.22263571]
[1755927640139,0.14216157,207.32,207.24,0.67]
[1755927640311,13.59559401,207.28,207.24,0.67]
[1755927640512,13.59559401,207.28,207.25,0.67]
[1755927640513,40.28,207.27,207.25,0.67]
[1755927640740,0.14216157,207.32,207.26,15.55263571]
[1755927641022,0.14216157,207.32,207.25,0.67]
[1755927641023,40.28,207.31,207.27,16.22263571]
[1755927641192,40.28,207.31,207.28,0.67]
[1755927641397,40.28,207.31,207.27,0.67]
[1755927641398,13.59559401,207.3,207.27,0.67]
[1755927641594,13.59559401,207.3,207.24,16.22263571]
[1755927641825,13.59559401,207.28,207.24,0.67]
[1755927642030,40.28,207.27,207.24,0.67]
[1755927642195,40.28,207.27,207.22,26.0]
[1755927642196,40.28,207.27,207.22,15.55263571]
[1755927642395,13.59559401,207.26,207.22,0.67]
[1755927642622,13.59559401,207.26,207.23,0.67]
[1755927643116,29.14822972,207.26,207.21,0.67]
[1755927643323,13.59559401,207.23,207.19,0.7]
[1755927643619,13.59559401,207.21,207.19,0.03]
[1755927643918,53.87559401,207.2,207.19,0.03]
[1755927647407,0.14216157,207.25,207.19,0.7]
[1755927647611,13.59559401,207.23,207.19,16.25263571]
[1755927647817,13.59559401,207.23,207.2,0.67]
[1755927648004,40.26,207.22,207.2,0.67]
[1755927648334,0.72,207.27,207.21,16.22263571]
[1755927648504,40.26,207.26,207.21,16.22263571]
[1755927648835,40.26,207.25,207.22,16.22263571]
[1755927649134,40.26,207.24,207.22,16.22263571]
[1755927649426,40.26,207.24,207.22,15.55263571]
[1755927649619,40.26,207.24,207.22,0.67]
[1755927649998,40.26,207.24,207.21,15.55263571]
[1755927649999,40.26,207.24,207.23,0.67]
[1755927650199,40.26,207.24,207.21,16.22263571]
[1755927650506,40.26,207.24,207.22,0.67]
[1755927653512,40.26,207.24,207.2,9.8141844]
[1755927653710,40.98,207.24,207.19,10.5141844]
[1755927654014,40.26,207.24,207.2,0.67]
[1755927656221,23.40977841,207.23,207.19,0.03]
[1755927656535,24.12977841,207.23,207.19,0.03]
[1755927656745,23.40977841,207.23,207.19,0.03]
[1755927656911,13.59559401,207.23,207.2,0.67]
[1755927657110,13.59559401,207.23,207.19,0.03]
[1755927657313,13.59559401,207.23,207.19,0.73]
[1755927658720,23.40977841,207.23,207.19,0.03]
[1755927658919,24.07977841,207.23,207.19,0.03]
[1755927659617,23.40977841,207.23,207.19,0.03]
[1755927660108,40.22,207.22,207.19,0.03]
[1755927660929,14.26559401,207.21,207.19,0.03]
[1755927661130,13.59559401,207.21,207.19,0.03]
[1755927661926,14.54991715,207.26,207.19,0.73]
[1755927662239,13.59559401,207.24,207.19,0.73]
[1755927662543,13.59559401,207.24,207.19,10.5441844]
[1755927662750,13.59559401,207.24,207.19,0.73]
[1755927662954,0.14216157,207.23,207.19,0.03]
[1755927663125,0.28432314,207.19,207.16,0.03]
[1755927663309,23.40977841,207.17,207.16,0.03]
[1755927663734,64.27977841,207.17,207.16,0.03]
[1755927665159,13.59559401,207.19,207.16,0.03]
[1755927665451,40.2,207.17,207.16,0.73]
[1755927665854,40.2,207.17,207.16,10.5441844]
[1755927666214,9.8141844,207.25,207.16,10.5441844]
[1755927666443,53.79559401,207.24,207.18,9.8141844]
[1755927666656,40.2,207.23,207.19,10.5141844]
[1755927666955,40.2,207.23,207.2,0.7]
[1755927667121,40.2,207.23,207.18,10.5141844]
[1755927667321,40.2,207.23,207.18,9.8141844]
[1755927667520,40.2,207.23,207.19,0.7]
[1755927667921,40.2,207.23,207.19,9.8141844]
[1755927668126,40.2,207.22,207.16,0.03]
[1755927668321,40.2,207.21,207.18,9.8141844]
[1755927668620,40.2,207.2,207.18,9.8141844]
[1755927668837,40.2,207.2,207.18,10.5141844]
[1755927669036,40.2,207.2,207.19,9.8141844]
[1755927669841,40.2,207.2,207.18,10.5141844]
[1755927670848,40.2,207.2,207.16,0.03]
[1755927671030,13.59559401,207.19,207.16,0.03]
[1755927671762,0.06,207.27,207.16,9.8441844]
[1755927671944,13.59559401,207.23,207.17,10.5141844]
[1755927672248,13.59559401,207.23,207.16,0.03]
[1755927672249,0.28432314,207.2,207.16,0.03]
[1755927673243,54.44559401,207.19,207.17,0.03]
[1755927673436,53.77559401,207.19,207.17,0.03]
[1755927674152,69.994755,207.19,207.17,0.03]
[1755927674952,53.77559401,207.19,207.17,0.03]
[1755927675447,53.75559401,207.18,207.17,0.03]
[1755927675754,40.16,207.18,207.17,16.27916099]
[1755927676420,13.59559401,207.23,207.17,16.27916099]
[1755927676421,0.14216157,207.22,207.17,16.27916099]
[1755927676625,0.06,207.25,207.21,15.54916099]
[1755927676944,40.16,207.24,207.18,0.7]
[1755927677529,13.59559401,207.23,207.18,0.7]
[1755927677949,13.59559401,207.23,207.19,0.7]
[1755927678251,13.59559401,207.23,207.17,0.03]
[1755927678455,40.16,207.22,207.19,0.7]
[1755927678629,13.59559401,207.21,207.17,0.03]
[1755927678837,14.26559401,207.21,207.17,15.57916099]
[1755927679282,13.59559401,207.22,207.19,15.54916099]
[1755927679441,40.14,207.21,207.2,16.24916099]
[1755927679759,13.59559401,207.2,207.17,15.57916099]
[1755927680137,13.59559401,207.2,207.17,16.27916099]
[1755927681449,13.59559401,207.2,207.17,15.57916099]
[1755927681954,13.59559401,207.2,207.17,0.03]
[1755927682451,14.26559401,207.2,207.17,0.03]
[1755927682651,13.59559401,207.18,207.17,0.03]
[1755927682855,53.73559401,207.18,207.17,0.03]
[1755927684257,54.01991715,207.18,207.17,0.03]
[1755927684451,70.23907814,207.18,207.17,0.03]
[1755927686351,13.87991715,207.18,207.17,0.03]
[1755927686727,53.99991715,207.18,207.17,0.03]
[1755927689556,54.69991715,207.18,207.17,0.03]
[1755927689862,53.99991715,207.18,207.17,0.03]
[1755927690061,54.69991715,207.18,207.17,0.03]
[1755927690265,53.99991715,207.18,207.17,0.03]
[1755927691350,13.87991715,207.18,207.17,0.03]
[1755927691548,53.97991715,207.18,207.17,0.03]
[1755927692342,13.59559401,207.18,207.17,0.03]
[1755927692543,53.69559401,207.18,207.17,0.72]
[1755927692753,53.69559401,207.18,207.17,0.03]
[1755927692948,53.69559401,207.18,207.17,0.72]
[1755927693338,40.1,207.18,207.17,16.26916099]
[1755927694560,40.1,207.18,207.17,0.72]
[1755927694868,40.14,207.19,207.17,16.26916099]
[1755927695059,40.14,207.19,207.18,15.54916099]
[1755927695374,40.14,207.19,207.18,16.23916099]
[1755927697280,0.06,207.19,207.18,16.23916099]
[1755927699459,0.06,207.19,207.18,19.48020359]
[1755927700253,0.06,207.22,207.18,19.48020359]
[1755927700565,0.06,207.22,207.21,9.80913272]
[1755927700752,0.06,207.22,207.21,13.7420932]
[1755927701366,0.06,207.22,207.17,0.03]
[1755927701367,0.06,207.22,207.19,9.80913272]
[1755927701752,0.76,207.22,207.17,0.03]
[1755927702071,0.06,207.22,207.19,9.80913272]
[1755927702873,0.06,207.22,207.21,9.80913272]
[1755927703072,40.1,207.22,207.21,9.80913272]
[1755927703271,40.1,207.22,207.21,10.49913272]
[1755927703653,13.59559401,207.21,207.17,0.03]
[1755927703845,14.29559401,207.21,207.17,9.83913272]
[1755927704567,13.59559401,207.19,207.17,0.03]
[1755927704771,53.63559401,207.18,207.17,0.03]
[1755927705878,40.02,207.18,207.17,10.52913272]
[1755927706082,40.02,207.18,207.17,9.83913272]
[1755927706250,40.02,207.18,207.17,0.03]
[1755927706974,53.61559401,207.18,207.17,0.03]
[1755927709270,40.02,207.18,207.17,0.03]
[1755927714557,40.02,207.18,207.17,15.57626101]
[1755927714757,40.02,207.18,207.17,16.26626101]
[1755927714982,0.06,207.19,207.17,16.26626101]
[1755927715303,0.06,207.19,207.18,16.23626101]
[1755927715500,40.04,207.19,207.18,16.23626101]
[1755927715863,40.04,207.19,207.18,19.48729685]
[1755927716066,40.04,207.19,207.18,18.48729685]
[1755927716283,0.06,207.19,207.18,18.48729685]
[1755927716891,0.06,207.22,207.18,18.48729685]
[1755927716892,0.06,207.22,207.19,0.28432314]
[1755927717068,0.06,207.24,207.23,26.0]
[1755927717387,0.06,207.24,207.23,44.79729685]
[1755927718263,0.06,207.24,207.23,45.47729685]
[1755927720686,0.06,207.24,207.23,45.46887282]
[1755927722264,0.06,207.24,207.23,42.22626101]
[1755927723467,0.06,207.24,207.23,26.68]
[1755927723803,0.06,207.24,207.23,15.54626101]
[1755927725171,0.06,207.24,207.23,16.22626101]
[1755927726392,0.06,207.27,207.26,26.0]
[1755927726569,0.06,207.27,207.26,15.54626101]
[1755927726770,0.06,207.27,207.26,16.22626101]
[1755927727282,0.06,207.27,207.26,19.46087636]
[1755927728267,0.06,207.27,207.26,3.91461535]
[1755927728467,0.06,207.27,207.26,13.71829552]
[1755927728679,0.06,207.27,207.26,3.91461535]
[1755927728900,0.06,207.27,207.26,9.80368017]
[1755927731511,0.77,207.27,207.2,0.68]
[1755927731676,0.71,207.26,207.25,9.80368017]
[1755927731870,0.06,207.27,207.25,9.80368017]
[1755927732074,0.71,207.26,207.2,0.68]
[1755927732292,0.71,207.26,207.25,9.80368017]
[1755927732490,0.06,207.27,207.25,9.80368017]
[1755927732708,0.06,207.27,207.26,9.80368017]
[1755927732887,0.06,207.27,207.25,9.80368017]
[1755927733394,0.71,207.26,207.24,9.80368017]
[1755927733602,0.71,207.25,207.23,9.80368017]
[1755927735570,0.71,207.25,207.2,26.0]
[1755927735776,0.71,207.25,207.23,9.80368017]
[1755927736700,0.71,207.25,207.24,9.80368017]
[1755927738186,13.65559401,207.27,207.24,9.80368017]
[1755927738392,0.71,207.26,207.24,9.80368017]
[1755927740104,0.71,207.26,207.25,9.80368017]
[1755927741005,13.65559401,207.27,207.25,10.48368017]
[1755927741006,0.06,207.27,207.25,10.48368017]
[1755927741299,0.06,207.27,207.26,9.80368017]
[1755927742103,0.06,207.27,207.26,10.48368017]
[1755927742495,0.06,207.27,207.26,13.70912428]
[1755927747909,0.06,207.29,207.28,26.0]
[1755927748106,0.06,207.33,207.3,26.0]
[1755927748304,0.06,207.33,207.32,9.80368017]
[1755927749987,0.06,207.33,207.32,13.20024254]
[1755927750383,0.06,207.33,207.32,9.80368017]
[1755927753101,0.06,207.33,207.32,39.87915148]
[1755927753301,0.06,207.33,207.32,44.65834719]
[1755927755593,0.06,207.33,207.32,46.58824419]
[1755927756200,0.06,207.37,207.36,23.87991715]
[1755927756408,0.06,207.43,207.42,49.59559401]
[1755927756606,0.2,207.45,207.42,55.39285249]
[1755927756917,13.65559401,207.52,207.43,3.39547131]
[1755927757116,13.65559401,207.52,207.44,3.39547131]
[1755927757321,0.06,207.52,207.45,3.39547131]
[1755927757527,0.06,207.52,207.47,9.80368017]
[1755927757693,0.06,207.52,207.48,9.80368017]
[1755927758796,0.06,207.52,207.49,9.80368017]
[1755927759015,0.06,207.52,207.51,9.80368017]
[1755927759216,0.06,207.52,207.51,19.16177087]
[1755927759438,0.06,207.52,207.51,5.3996267]
[1755927759622,0.06,207.53,207.51,25.97131018]
[1755927759924,0.06,207.53,207.52,14.23123421]
[1755927760323,0.06,207.53,207.52,18.20026074]
[1755927760703,0.06,207.53,207.52,14.23123421]
[1755927761505,24.57390513,207.66,207.53,13.59559401]
[1755927761704,24.57390513,207.66,207.54,0.48183983]
[1755927761897,24.95582004,207.68,207.65,9.80368017]
[1755927762101,24.57390513,207.66,207.52,53.3409772]
[1755927762303,24.57390513,207.66,207.65,9.80368017]
[1755927763029,27.08428672,207.66,207.52,13.7601598]
[1755927763324,24.19328045,207.75,207.65,1.24e-06]
[1755927763528,24.50915401,207.71,207.57,0.28432314]
[1755927763724,24.50915401,207.71,207.56,26.0]
[1755927763725,24.50915401,207.71,207.7,3.48885405]
[1755927763902,24.50915401,207.71,207.7,9.80368017]
[1755927764527,24.50915401,207.71,207.7,15.45454381]
[1755927765415,0.68,207.79,207.48,81.13417524]
[1755927765416,24.51894769,207.66,207.63,39.7]
[1755927765744,40.36,207.83,207.66,0.28432314]
[1755927766025,53.95559401,207.83,207.82,15.45454381]
[1755927766532,13.59559401,207.82,207.72,0.28432314]
[1755927766711,13.59559401,207.82,207.81,15.45454381]
[1755927767099,13.59559401,207.84,207.83,26.0]
[1755927767298,14.27559401,207.84,207.83,41.45454381]
[1755927767500,53.27559401,207.84,207.83,41.45454381]
[1755927767814,13.59559401,207.86,207.83,41.45454381]
[1755927768016,13.59559401,207.86,207.67,15.45454381]
[1755927768017,13.59559401,207.84,207.71,0.28432314]
[1755927768215,13.59559401,207.84,207.48,15.45454381]
[1755927768216,29.05013782,207.82,207.48,15.45454381]
[1755927768526,13.59559401,207.78,207.5,39.68]
[1755927768702,13.59559401,207.78,207.67,15.45454381]
[1755927768905,13.59559401,207.76,207.7,26.0]
[1755927769343,13.59559401,207.76,207.67,15.45454381]
[1755927769344,13.59559401,207.74,207.71,15.45454381]
[1755927769524,13.59559401,207.72,207.71,15.45454381]
[1755927769722,14.27559401,207.72,207.71,15.45454381]
[1755927770427,14.27559401,207.72,207.49,13.59559401]
[1755927770615,13.59559401,207.75,207.69,15.45454381]
[1755927770925,13.59559401,207.7,207.67,15.45454381]
[1755927771132,13.59559401,207.68,207.49,13.59559401]
[1755927771336,13.59559401,207.68,207.67,15.45454381]
[1755927771634,14.27559401,207.68,207.67,15.45454381]
[1755927771936,39.64,207.68,207.67,15.45454381]
[1755927772133,13.59559401,207.71,207.7,26.0]
[1755927772338,53.23559401,207.71,207.7,15.45454381]
[1755927772521,53.91559401,207.71,207.7,15.45454381]
[1755927773029,13.59559401,207.74,207.73,26.0]
[1755927773333,39.64,207.74,207.73,41.45454381]
[1755927774215,53.91559401,207.74,207.55,0.28432314]
[1755927774420,53.91559401,207.74,207.72,15.45454381]
[1755927774817,0.68,207.73,207.7,15.45454381]
[1755927775126,53.23559401,207.74,207.73,26.0]
[1755927775505,13.59559401,207.73,207.66,0.28432314]
[1755927775709,13.59559401,207.73,207.72,26.0]
[1755927776130,14.27559401,207.73,207.72,26.0]
[1755927777435,14.27559401,207.73,207.65,0.28432314]
[1755927777629,14.27559401,207.73,207.72,26.0]
[1755927778027,14.27559401,207.73,207.7,15.45454381]
[1755927778227,13.59559401,207.73,207.7,15.45454381]
[1755927778435,0.69,207.72,207.7,15.45454381]
[1755927779010,0.69,207.71,207.62,0.03]
[1755927779219,13.59559401,207.7,207.68,26.0]
[1755927779449,40.31,207.69,207.68,26.0]
[1755927779635,53.90559401,207.69,207.68,26.0]
[1755927780217,53.90559401,207.69,207.67,26.0]
[1755927780446,0.69,207.68,207.64,15.45454381]
[1755927780852,0.69,207.68,207.67,26.0]
[1755927781055,13.59559401,207.68,207.67,26.0]
[1755927781742,14.28559401,207.68,207.67,26.0]
[1755927781938,39.62,207.69,207.67,26.0]
[1755927782242,53.21559401,207.69,207.68,26.0]
[1755927782533,53.90559401,207.69,207.62,0.03]
[1755927782740,0.06,207.73,207.68,15.45454381]
[1755927782947,0.06,207.73,207.72,15.73886695]
[1755927783535,39.22812941,207.75,207.74,41.73886695]
[1755927785538,0.69,207.86,207.75,0.28432314]
[1755927785742,0.1,207.88,207.76,15.73886695]
[1755927786045,39.62,207.82,207.76,15.73886695]
[1755927786257,39.62,207.83,207.76,15.73886695]
[1755927788052,39.62,207.83,207.67,15.45454381]
[1755927788265,0.69,207.82,207.76,15.45454381]
[1755927788461,0.69,207.82,207.76,15.59670538]
[1755927789153,0.69,207.82,207.76,15.73886695]
[1755927790338,0.75,207.77,207.62,0.03]
[1755927790563,39.6,207.76,207.75,15.45454381]
[1755927790744,13.59559401,207.75,207.62,0.03]
[1755927790940,14.28559401,207.75,207.73,15.45454381]
[1755927791145,0.69,207.74,207.73,15.45454381]
[1755927791662,0.06,207.77,207.73,15.45454381]
[1755927791886,0.06,207.77,207.76,41.73886695]
[1755927792465,0.06,207.77,207.76,26.0]
[1755927792668,0.06,207.77,207.76,15.73886695]
[1755927793760,0.06,207.77,207.76,20.44562907]
[1755927797166,0.06,207.77,207.76,4.99108526]
[1755927797354,0.06,207.77,207.76,20.3034675]
[1755927798050,0.06,207.77,207.76,20.44562907]
[1755927800262,0.02774162,207.77,207.76,38.85446913]
[1755927800663,0.02774162,207.77,207.76,34.04122308]
[1755927801779,0.71774162,207.77,207.76,4.70676212]
[1755927801948,0.02774162,207.77,207.76,15.45454381]
[1755927802270,0.02774162,207.77,207.76,20.54729012]
[1755927802655,0.71774162,207.77,207.76,20.54729012]
[1755927802858,0.71774162,207.77,207.76,20.40512855]
[1755927803571,0.71774162,207.77,207.76,20.54729012]
[1755927804853,0.02774162,207.77,207.76,20.54729012]
[1755927806773,0.02774162,207.77,207.76,25.37329012]
[1755927807158,0.02774162,207.77,207.76,20.54729012]
[1755927808465,0.02774162,207.77,207.76,38.96888413]
[1755927808667,0.00774162,207.77,207.76,43.78213018]
[1755927809174,0.00774162,207.77,207.76,23.50158637]
[1755927809385,0.00774162,207.77,207.76,38.95613018]
[1755927809865,0.06,207.8,207.76,38.95613018]
[1755927809866,0.06,207.8,207.79,26.0]
[1755927810066,0.06,207.8,207.79,41.73886695]
[1755927810572,0.39618081,207.87,207.86,15.73886695]
[1755927810783,0.1,207.88,207.86,15.73886695]
[1755927810977,0.1,207.88,207.87,15.45454381]
[1755927811670,0.1,207.88,207.87,19.63505493]
[1755927812355,0.78,207.88,207.87,19.63505493]
[1755927813462,0.63561577,207.88,207.87,19.63505493]
[1755927814464,39.61355214,207.89,207.88,0.28432314]
[1755927814674,39.61355214,207.89,207.88,15.73886695]
[1755927816580,40.29355214,207.89,207.88,15.73886695]
[1755927817288,39.61355214,207.89,207.88,15.73886695]
[1755927818476,40.29355214,207.89,207.88,15.73886695]
[1755927819090,40.29355214,207.89,207.88,0.28432314]
[1755927819292,40.29355214,207.89,207.88,15.73886695]
[1755927820000,39.61355214,207.89,207.88,15.73886695]
[1755927820171,39.61355214,207.89,207.88,0.28432314]
[1755927820374,39.61355214,207.89,207.88,15.73886695]
[1755927821784,39.61355214,207.89,207.88,0.28432314]
[1755927821982,39.61355214,207.89,207.88,15.73886695]
[1755927822365,40.29355214,207.89,207.88,15.73886695]
[1755927822568,39.61355214,207.89,207.88,15.73886695]
[1755927822876,40.29355214,207.89,207.88,15.73886695]
[1755927823198,39.61355214,207.89,207.88,15.73886695]
[1755927824069,39.61355214,207.89,207.88,0.28432314]
[1755927824272,39.61355214,207.89,207.88,15.73886695]
[1755927825092,39.61355214,207.89,207.88,0.28432314]
[1755927825296,39.61355214,207.89,207.88,15.73886695]
[1755927826379,0.06,207.92,207.91,26.0]
[1755927826581,39.62,207.92,207.91,26.0]
[1755927826789,40.3,207.92,207.91,26.0]
[1755927826987,40.3,207.92,207.91,35.74274635]
[1755927827393,0.06,207.92,207.91,35.74274635]
[1755927827588,0.06,207.92,207.91,57.02706949]
[1755927828379,0.74,207.92,207.91,36.02706949]
[1755927828773,0.74,207.92,207.91,38.80250416]
[1755927829697,0.74,207.92,207.91,2.33975781]
[1755927829698,14.33559401,207.92,207.91,2.33975781]
[1755927829998,14.33559401,207.92,207.89,9.74274635]
[1755927829999,13.59559401,207.91,207.89,9.74274635]
[1755927830197,40.24,207.9,207.89,9.74274635]
[1755927830379,53.83559401,207.9,207.89,9.74274635]
[1755927830579,53.83559401,207.9,207.88,9.74274635]
[1755927830798,0.06,207.92,207.89,9.74274635]
[1755927830995,39.56,207.91,207.88,0.28432314]
[1755927832081,0.06,207.92,207.9,10.02706949]
[1755927832310,0.06,207.92,207.91,42.40665599]
[1755927833174,0.02877603,207.92,207.91,42.40665599]
[1755927834191,0.02877603,207.92,207.91,56.00225]
[1755927834388,0.02877603,207.92,207.91,60.81202345]
[1755927834911,0.06,207.94,207.92,13.87991715]
[1755927835080,0.06,207.94,207.93,15.69665599]
[1755927835279,0.06,207.94,207.93,30.00225]
[1755927837491,0.06,207.94,207.93,34.81156082]
[1755927837801,0.00706651,207.94,207.93,30.00225]
[1755927838179,0.00706651,207.94,207.93,34.81156082]
[1755927839112,0.7,208.06,207.97,0.28432314]
[1755927839312,0.7,208.06,207.97,42.39665599]
[1755927839715,39.54,208.09,207.97,42.39665599]
[1755927839716,0.7,208.04,207.97,42.39665599]
[1755927840382,0.7,208.08,207.97,60.80063582]
[1755927840883,13.59559401,208.12,207.97,60.80063582]
[1755927841090,0.7,208.09,208.02,0.28432314]
[1755927841286,0.7,208.09,208.08,15.69665599]
[1755927841491,0.7,208.09,208.08,18.72678535]
[1755927841792,0.7,208.09,208.08,15.69665599]
[1755927842102,0.7,208.09,208.08,18.72801062]
[1755927842410,13.59559401,208.12,208.11,26.0]
[1755927842790,49.61999873,208.13,207.96,0.7]
[1755927842791,9.99999873,208.08,207.96,0.7]
[1755927843121,13.59559401,208.05,207.97,3.03260989]
[1755927843314,13.59559401,208.01,207.98,18.44494274]
[1755927843609,13.59559401,208.01,207.86,15.41233285]
[1755927843610,13.59559401,208.01,207.99,3.03260989]
[1755927843908,13.59559401,208.01,208.0,3.03260989]
[1755927844089,13.65559401,208.01,208.0,3.03260989]
[1755927844283,13.65559401,208.01,208.0,3.03731192]
[1755927844485,13.65559401,208.01,208.0,15.41233285]
[1755927844688,13.65559401,208.01,208.0,18.44964477]
[1755927845214,0.06,208.01,208.0,3.03731192]
[1755927845593,0.06,208.01,208.0,18.44964477]
[1755927845915,0.06,208.01,208.0,3.03731192]
[1755927846084,9.99999873,207.99,207.97,3.03856718]
[1755927846414,23.59559274,207.99,207.97,3.03856718]
[1755927846590,23.59559274,207.99,207.98,18.45090003]
[1755927846932,23.59559274,207.99,207.98,29.03856718]
[1755927847289,23.59559274,207.99,207.98,3.03856718]
[1755927847487,13.59559401,207.98,207.95,18.45222836]
[1755927847689,23.59559274,207.97,207.96,3.03990579]
[1755927847904,23.59559274,207.96,207.95,3.04077924]
[1755927848093,23.59559274,207.96,207.91,4.79821364]
[1755927848094,13.59559401,207.93,207.91,4.79821364]
[1755927848295,13.59559401,207.93,207.92,15.41233285]
[1755927848494,53.11559401,207.93,207.92,18.45620598]
[1755927848727,53.11559401,207.93,207.92,3.04387313]
[1755927849041,53.11559401,207.93,207.92,18.45620598]
[1755927850538,53.11559401,207.93,207.92,3.04387313]
[1755927850827,53.11559401,207.93,207.92,18.45620598]
[1755927851332,53.11559401,207.93,207.92,3.04387313]
[1755927851729,13.59559401,207.93,207.92,18.45620598]
[1755927851903,53.11559401,207.93,207.92,18.45620598]
[1755927852600,39.52,207.93,207.92,18.45620598]
[1755927854219,39.52,207.93,207.92,3.04387313]
[1755927854829,68.52792686,207.93,207.92,3.04387313]
[1755927855124,9.99999873,207.9,207.88,0.03]
[1755927855327,39.52,207.89,207.88,0.03]
[1755927855698,39.52,207.89,207.88,3.08333248]
[1755927855900,39.52,207.89,207.88,29.08333248]
[1755927856322,53.11559401,207.89,207.88,3.08333248]
[1755927856710,68.52792686,207.89,207.88,3.08333248]
[1755927857024,53.11559401,207.89,207.88,3.08357029]
[1755927857531,53.11559401,207.89,207.88,29.08357029]
[1755927859312,13.59559401,207.89,207.88,29.08357029]
[1755927859507,53.11559401,207.89,207.88,29.08357029]
[1755927859709,53.11559401,207.89,207.88,29.126468]
[1755927860420,68.52792686,207.89,207.88,0.03]
[1755927860926,13.59559401,207.89,207.88,0.03]
[1755927861225,9.99999873,207.97,207.91,26.0]
[1755927861525,9.99999873,207.93,207.92,18.50798507]
[1755927861742,0.06,208.03,207.94,26.0]
[1755927861743,9.99999873,207.98,207.94,26.0]
[1755927861906,23.59559274,207.96,207.95,15.41233285]
[1755927862106,13.59559401,207.95,207.94,15.41233285]
[1755927862427,49.51999873,207.96,207.94,19.20498599]
[1755927862428,39.52,207.96,207.94,19.20498599]
[1755927862633,39.52,207.96,207.95,18.50498599]
[1755927862835,39.52,207.96,207.95,3.79265314]
[1755927863126,39.52,207.96,207.95,19.20543437]
[1755927864217,0.06,208.01,207.98,26.0]
[1755927864508,39.52,208.07,208.04,0.28432314]
[1755927864807,39.52,208.07,208.06,15.69665599]
[1755927865036,39.52,208.07,208.06,19.48975751]
[1755927865523,39.52,208.07,208.06,3.79310152]
[1755927865714,39.52,208.07,208.06,18.50543437]
[1755927866116,39.52,208.07,208.06,3.09132146]
[1755927866427,39.52,208.07,208.06,15.41233285]
[1755927866626,39.52,208.07,208.06,18.50317884]
[1755927867346,53.47559401,208.07,208.06,3.09084599]
[1755927867512,9.99999873,208.06,208.05,26.0]
[1755927868133,49.49999873,208.06,208.05,19.19299939]
[1755927868512,9.99999873,208.1,208.08,26.0]
[1755927868717,9.99999873,208.1,208.09,19.19096346]
[1755927868913,39.5,208.1,208.09,19.19096346]
[1755927869232,39.5,208.1,208.09,19.4752866]
[1755927869551,39.5,208.1,208.09,23.26775983]
[1755927869914,0.06,208.16,208.13,0.28432314]
[1755927870130,0.06,208.16,208.15,15.69665599]
[1755927870336,39.5,208.17,208.15,19.4752866]
[1755927870624,1.0,208.2,208.15,19.4752866]
[1755927870625,1.0,208.2,208.19,26.0]
[1755927870828,39.78,208.2,208.19,44.7852866]
[1755927871021,39.78,208.2,208.19,44.77665881]
[1755927871325,39.78,208.2,208.19,18.77665881]
[1755927871530,39.78,208.2,208.19,18.77310933]
[1755927871735,39.78,208.2,208.19,15.69665599]
[1755927871942,39.78,208.2,208.19,18.77312636]
[1755927872133,0.28,208.2,208.19,23.5269027]
[1755927872443,0.28,208.2,208.19,24.2169027]